fUSD/lending_fUSD_20241205
["ID","MTS","AMOUNT","RATE_DAILY","PERIOD"]
[344417432,1733433044144,-159.6,8.822e-05,2]
[344417434,1733433044153,-500.0,8.849e-05,2]
[344417436,1733433044163,-366.0,9.183e-05,2]
[344417438,1733433044173,-3311.48,9.19e-05,2]
[344417440,1733433044183,-1475.29,0.000102,2]
[344417442,1733433044192,-1258.71,0.00010916,2]
[344417444,1733433044201,-213.43,0.00010945,2]
[344417446,1733433044210,-250.0,0.0001096,2]
[344417448,1733433044220,-200.0,0.0001096,2]
[344417450,1733433044229,-489.24,0.00010962,2]
[344417452,1733433044238,-2367.56,0.00010976,2]
[344417454,1733433044248,-1758.16,0.00010997,2]
[344417456,1733433044258,-150.0,0.00011028,2]
[344417458,1733433044268,-150.0,0.00011057,2]
[344417460,1733433044277,-250.0,0.00011163,2]
[344417461,1733433044286,-2000.0,0.00011173,2]
[344417464,1733433044296,-250.0,0.00011173,2]
[344417465,1733433044305,-18668.63,0.00011206,2]
[344417467,1733433044315,-157.29,0.00011326,2]
[344417470,1733433044325,-1000.0,0.0001135,2]
[344417471,1733433044340,-1907.15,0.00011353,2]
[344417474,1733433044350,-3311.48,0.00011454,2]
[344417476,1733433044359,-2751.0,0.00011507,2]
[344417478,1733433044369,-200.0,0.00011992,2]
[344417480,1733433044378,-40672.09,0.00012055,2]
[344417481,1733433044388,-150.0,0.00012198,3]
[344417483,1733433044398,-150.0,0.00012298,3]
[344417485,1733433044407,-14363.92910534,0.00012329,2]
[344417487,1733433044420,-81185.97089466,0.00012329,2]
[344417489,1733433044429,-150.0,0.00012398,3]
[344417490,1733433044439,-150.0,0.00012498,3]
[344417491,1733433044449,-150.0,0.00012598,3]
[344417492,1733433044459,-150.0,0.00012698,3]
[344417493,1733433044469,-157.29,0.00012741,2]
[344417494,1733433044478,-1000.0,0.00012769,2]
[344417495,1733433044488,-150.0,0.00012798,3]
[344417496,1733433044499,-150.0,0.00012898,4]
[344417497,1733433044508,-150.0,0.00012898,3]
[344417498,1733433044517,-1882.4951,0.000129,2]
[344417499,1733433044528,-2727.40866606,0.000129,2]
[344417500,1733433044538,-11211.99798884,0.000129,2]
[344417501,1733433044549,-337.4943,0.000129,2]
[344417502,1733433044558,-1008.90905069,0.000129,2]
[344417503,1733433044581,-5355.01704931,0.000129,2]
[344417504,1733433044590,-1000.0,0.000129,2]
[344417505,1733433044601,-3082.6962,0.000129,2]
[344417506,1733433044611,-288.06378927,0.000129,2]
[344417507,1733433044621,-12847.97605197,0.000129,2]
[344417508,1733433044631,-3267.34135069,0.000129,2]
[344417509,1733433044640,-8595.5304558,0.000129,2]
[344417510,1733433044650,-9614.23205902,0.000129,2]
[344417511,1733433044659,-176.910292,0.00012972,2]
[344417512,1733433044668,-9736.8156044,0.0001299,2]
[344417513,1733433044677,-7883.7785227,0.00012991,2]
[344417514,1733433044686,-6030.741441,0.00012991,2]
[344417515,1733433044696,-2000.0,0.00012999,2]
[344417516,1733433044705,-29236.17791199,0.00012999,2]
[344417517,1733433044716,-3221.56221253,0.00012999,2]
[344417518,1733433044740,-29812.51596383,0.00012999,2]
[344417519,1733433044752,-1380.39872381,0.00012999,2]
[344417520,1733433044771,-345.25998,0.00012999,2]
[344417521,1733433044782,-4955.89210972,0.00012999,2]
[344417522,1733433044795,-1758.83189176,0.00012999,2]
[344417523,1733433044806,-15378.06702542,0.00012999,2]
[344417524,1733433044818,-5472.33750414,0.00012999,2]
[344417525,1733433044830,-14967.68420815,0.00012999,2]
[344417526,1733433044842,-5991.67620003,0.00012999,2]
[344417527,1733433044860,-364.13626862,0.00012999,2]
[344417528,1733433044872,-2540.14512757,0.00013,2]
[344417538,1733433046151,-23148.368,0.00013,2]
[344417539,1733433046165,-1069.25868172,0.00013,2]
[344417540,1733433046217,-6701.25230836,0.00013,2]
[344417541,1733433046337,-2353.400002,0.00013,2]
[344417542,1733433046397,-8513.83181348,0.00013,2]
[344417543,1733433046409,-18818.44078416,0.00013,2]
[344417544,1733433046419,-501.65921584,0.00013,2]
[344417548,1733433046489,-1241.10676796,0.00013,2]
[344417550,1733433046501,-69473.15007041,0.00013,2]
[344417648,1733433180387,875.01,0.00016658,30]
[344417649,1733433338893,205.82,0.00018,30]
[344417650,1733433444538,10000.0,0.00016,30]
[344417652,1733433480611,9794.18,0.00016,30]
[344417685,1733434231443,-150.0,6.799e-05,2]
[344417687,1733434231453,-243.3952172,6.8e-05,2]
[344417689,1733434231471,-972.9520437,6.8e-05,2]
[344417690,1733434231483,-673.743518,6.8e-05,2]
[344417691,1733434231494,-1078.47095385,6.8e-05,2]
[344417692,1733434231612,-21168.579,6.8e-05,2]
[344417693,1733434231624,-336.50062,6.8e-05,2]
[344417694,1733434231697,-273526.35864725,6.8e-05,2]
[344417695,1733434231707,-624.98035239,6.973e-05,2]
[344417696,1733434231717,-159.93195974,6.973e-05,2]
[344417697,1733434231726,-500.0,6.973e-05,2]
[344417698,1733434231735,-577.77051472,6.973e-05,2]
[344417699,1733434231744,-159.43368245,6.973e-05,2]
[344417700,1733434231754,-150.0,6.998e-05,2]
[344417701,1733434231763,-150.0,6.998e-05,2]
[344417702,1733434231773,-150.0,6.998e-05,2]
[344417703,1733434231782,-150.0,6.998e-05,2]
[344417704,1733434231792,-150.0,6.998e-05,2]
[344417705,1733434231801,-150.0,6.998e-05,2]
[344417706,1733434231811,-456.30855264,6.999e-05,2]
[344417707,1733434231820,-305.91281177,6.999e-05,2]
[344417708,1733434231830,-900.0,7e-05,2]
[344417709,1733434231839,-5565330.19467574,7e-05,2]
[344417710,1733434231859,-487940.0,7e-05,2]
[344417711,1733434231870,-16615.09853166,7e-05,2]
[344417712,1733434231893,-1784.30865359,7e-05,2]
[344417713,1733434231913,-1214.23668122,7e-05,2]
[344417714,1733434231924,-303.33119024,7e-05,2]
[344417715,1733434231936,-3729.04145734,7e-05,2]
[344417716,1733434231947,-4545.11624933,7e-05,2]
[344417717,1733434231958,-524.42163544,7e-05,2]
[344417718,1733434234859,-295.6043219,7e-05,2]
[344417719,1733434234871,-300.45795023,7e-05,2]
[344417720,1733434234896,-1992.85182177,7e-05,2]
[344417726,1733434237698,-1109.76612253,7e-05,2]
[344417727,1733434237752,-356.2843759,7e-05,2]
[344417728,1733434237764,-1799.59999998,7e-05,2]
[344417729,1733434237787,-16149.0561489,7e-05,2]
[344417730,1733434237799,-13010.9844,7e-05,2]
[344417733,1733434237827,-599.27299999,7e-05,2]
[344417736,1733434237839,-301.91055826,7e-05,2]
[344417745,1733434239441,-497.179028,7e-05,2]
[344417746,1733434239453,-2194.64000001,7e-05,2]
[344417747,1733434239465,-728.86710491,7e-05,2]
[344417748,1733434239489,-48578.78937703,7e-05,2]
[344417749,1733434239500,-516.46435366,7e-05,2]
[344417750,1733434239511,-3732.55433798,7e-05,2]
[344417751,1733434239523,-298.16363372,7e-05,2]
[344417752,1733434239535,-772.93999999,7e-05,2]
[344417753,1733434239652,-396.840444,7e-05,2]
[344417754,1733434239664,-2364.04055,7e-05,2]
[344417755,1733434239675,-314576.57779188,7e-05,2]
[344417797,1733434242413,-260.92417094,7e-05,2]
[344417798,1733434242495,-2892.69898422,7e-05,2]
[344417799,1733434242507,-45603.03548851,7e-05,2]
[344417800,1733434242583,-4289.77498601,7e-05,2]
[344417801,1733434242594,-6090.78481144,7e-05,2]
[344417802,1733434242606,-2975.23039374,7e-05,2]
[344417803,1733434242624,-106570.66564148,7e-05,2]
[344417804,1733434242687,-267.38,7e-05,2]
[344417805,1733434242699,-9930.95943399,7e-05,2]
[344417813,1733434245525,-599.8430045,6.973e-05,2]
[344417814,1733434245534,-368.45682157,7e-05,2]
[344417815,1733434245546,-1463.16883068,7e-05,2]
[344417816,1733434245715,-4979.4891,7e-05,2]
[344417817,1733434245727,-2759.05,7e-05,2]
[344417818,1733434245824,-590.800005,7e-05,2]
[344417824,1733434529930,157.0,7e-05,30]
[344417825,1733434530404,157.0,0.00011878,30]
[344417827,1733435036898,157.0,7e-05,30]
[344417828,1733435104606,158.0,7e-05,30]
[344417831,1733435295940,-300.0,0.00022,120]
[344417832,1733435295966,-156.543463,0.00022,120]
[344417833,1733435359113,-152.63,5.182e-05,2]
[344417834,1733435359137,-200.0,5.851e-05,2]
[344417835,1733435359163,-600.0,6.1e-05,2]
[344417836,1733435359192,-1300.0,6.2e-05,2]
[344417837,1733435359215,-150.0,6.288e-05,2]
[344417838,1733435359238,-2000.0,6.3e-05,2]
[344417839,1733435359262,-2600.0,6.4e-05,2]
[344417840,1733435359285,-300.0,6.499e-05,2]
[344417841,1733435359309,-3300.0,6.5e-05,2]
[344417842,1733435359333,-600.0,6.6e-05,2]
[344417843,1733435359356,-293.23,6.624e-05,2]
[344417844,1733435359381,-150.0,6.699e-05,2]
[344417845,1733435359406,-47800.28146754,6.7e-05,2]
[344417846,1733435362171,-1963.73853246,6.7e-05,2]
[344417847,1733435362195,-600.0,6.7e-05,2]
[344417848,1733435362219,-1135.08,6.711e-05,2]
[344417849,1733435362242,-74.54406754,6.8e-05,2]
[344417869,1733435431667,-525.45593246,6.8e-05,2]
[344417870,1733435431678,-150.0,6.8e-05,2]
[344417871,1733435431687,-150.0,6.8e-05,2]
[344417872,1733435431697,-150.0,6.8e-05,2]
[344417873,1733435431706,-150.0,6.8e-05,2]
[344417874,1733435431716,-150.0,6.8e-05,2]
[344417875,1733435431725,-150.0,6.8e-05,2]
[344417876,1733435431735,-150.0,6.8e-05,2]
[344417877,1733435431744,-150.0,6.8e-05,2]
[344417878,1733435431753,-59.80261112,6.8e-05,2]
[344417879,1733435431764,-90.19738888,6.8e-05,2]
[344417880,1733435431774,-150.0,6.8e-05,2]
[344417881,1733435431783,-150.0,6.8e-05,2]
[344417882,1733435431793,-150.0,6.8e-05,2]
[344417883,1733435431802,-150.0,6.8e-05,2]
[344417884,1733435431811,-150.0,6.8e-05,2]
[344417885,1733435431820,-150.0,6.8e-05,2]
[344417886,1733435431830,-150.0,6.8e-05,2]
[344417887,1733435431839,-150.0,6.8e-05,2]
[344417888,1733435431848,-150.0,6.8e-05,2]
[344417889,1733435431857,-150.0,6.8e-05,2]
[344417890,1733435431867,-162.22230373,6.8e-05,2]
[344417891,1733435431877,-600.0,6.9e-05,2]
[344417892,1733435431886,-300.0,6.958e-05,2]
[344417893,1733435431895,-1709.0,6.959e-05,2]
[344417894,1733435431905,-269.04842399,6.959e-05,2]
[344417895,1733435431917,-304.0,6.959e-05,2]
[344417896,1733435432029,-1035.5280549,6.959e-05,2]
[344417897,1733435432040,-690.42352111,6.959e-05,2]
[344417898,1733435432050,-155.0,6.959e-05,2]
[344417899,1733435432060,-150.0,6.959e-05,2]
[344417900,1733435432069,-37.06655142,6.973e-05,2]
[344417901,1733435432080,-126.45570858,6.973e-05,2]
[344417902,1733435432090,-503.9657909,6.973e-05,2]
[344417903,1733435432100,-331.72850052,6.973e-05,2]
[344417904,1733435432113,-168.27149948,6.973e-05,2]
[344417905,1733435432124,-372.04475441,6.973e-05,2]
[344417906,1733435432134,-414.13374611,6.973e-05,2]
[344417907,1733435432146,-85.86625389,6.973e-05,2]
[344417908,1733435432156,-159.43625397,6.973e-05,2]
[344417909,1733435432166,-159.45175759,6.973e-05,2]
[344417910,1733435432176,-160.96001059,6.973e-05,2]
[344417911,1733435432185,-159.4497293,6.973e-05,2]
[344417912,1733435432194,-179.3945168,6.973e-05,2]
[344417913,1733435432203,-115.04877786,6.998e-05,2]
[344417914,1733435432214,-34.95122214,6.998e-05,2]
[344417915,1733435432223,-150.0,6.998e-05,2]
[344417916,1733435432233,-150.0,6.998e-05,2]
[344417917,1733435432241,-150.0,6.998e-05,2]
[344417918,1733435432251,-150.0,6.998e-05,2]
[344417919,1733435432260,-150.0,6.998e-05,2]
[344417920,1733435432269,-150.0,6.998e-05,2]
[344417921,1733435432279,-150.0,6.998e-05,2]
[344417922,1733435432288,-150.0,6.998e-05,2]
[344417923,1733435432297,-150.0,6.998e-05,2]
[344417924,1733435432306,-697.80404645,6.998e-05,2]
[344417925,1733435432317,-546.21011004,6.998e-05,2]
[344417926,1733435432328,-20848.13731701,6.998e-05,2]
[344417927,1733435432341,-562.26620255,6.998e-05,2]
[344417928,1733435432360,-990.0,6.998e-05,2]
[344417933,1733435432400,-3148.89194215,6.998e-05,2]
[344417938,1733435432437,-30201.50471958,6.998e-05,2]
[344417942,1733435432468,-688.749995,6.998e-05,2]
[344417946,1733435432493,-35964.00000005,6.998e-05,2]
[344417948,1733435432505,-550.99707701,6.998e-05,2]
[344417953,1733435437654,-319.41598685,6.997e-05,2]
[344417954,1733435437664,-169.82754385,6.998e-05,2]
[344417955,1733435437775,-773.6322483,6.998e-05,2]
[344417956,1733435437787,-360.13999998,6.998e-05,2]
[344418007,1733435439653,-905.2599921,6.998e-05,2]
[344418008,1733435439667,-26987.23835642,6.998e-05,2]
[344418009,1733435439784,-20648.6658049,6.998e-05,2]
[344418014,1733435443254,-2922.79121714,6.998e-05,2]
[344418015,1733435443265,-548.0932,6.998e-05,2]
[344418016,1733435443276,-1149.369636,6.998e-05,2]
[344418017,1733435443287,-4628.727316,6.998e-05,2]
[344418018,1733435443299,-2142.549585,6.998e-05,2]
[344418019,1733435443372,-3146.67911344,6.998e-05,2]
[344418020,1733435443449,-1281.77860811,6.998e-05,2]
[344418021,1733435443637,-99079.00000002,6.998e-05,2]
[344418022,1733435443655,-234108.24292839,6.998e-05,2]
[344418041,1733435445742,-565495.17887083,6.998e-05,2]
[344418042,1733435445754,-74201.75084096,6.998e-05,2]
[344418043,1733435445909,-2377.998098,6.998e-05,2]
[344418044,1733435445933,-28427.360531,6.998e-05,2]
[344418045,1733435445947,-88474.108647,6.998e-05,2]
[344418046,1733435446026,-834.16042273,6.998e-05,2]
[344418058,1733435467419,158.61996549,6.998e-05,30]
[344418061,1733436408133,-150.0,6.288e-05,2]
[344418062,1733436408156,-57.79270823,6.858e-05,2]
[344418063,1733436447083,-200.0,5.459e-05,2]
[344418064,1733436447105,-3897.11229177,6.858e-05,2]
[344418065,1733436447126,-187.958,6.858e-05,2]
[344418066,1733436447147,-300.0,6.899e-05,2]
[344418067,1733436447167,-1048.7012731,6.9e-05,2]
[344418068,1733436553078,-200.0,6e-05,2]
[344418069,1733436553101,-500.0,6.1e-05,2]
[344418070,1733436553125,-1755.81,6.186e-05,2]
[344418071,1733436553147,-700.0,6.2e-05,2]
[344418072,1733436553170,-300.0,6.218e-05,2]
[344418073,1733436553191,-1404.77,6.219e-05,2]
[344418074,1733436553212,-340.90139935,6.219e-05,2]
[344418080,1733436631965,-150.1569955,5.492e-05,2]
[344418081,1733436631975,-611.38,6.023e-05,2]
[344418082,1733436631986,-257.55,6.066e-05,2]
[344418083,1733436632000,-1852.42,6.081e-05,2]
[344418084,1733436632010,-500.0,6.133e-05,2]
[344418085,1733436632020,-2768.4930045,6.158e-05,2]
[344418086,1733436632044,-297.50227459,6.158e-05,2]
[344418087,1733436632065,-319.5,6.158e-05,2]
[344418088,1733436632159,-1149.48472091,6.158e-05,2]
[344418089,1733436632171,-1159.09860065,6.219e-05,2]
[344418090,1733436632181,-1821.67,6.219e-05,2]
[344418091,1733436632190,-150.0,6.219e-05,2]
[344418092,1733436632200,-1503.66,6.22e-05,2]
[344418093,1733436632209,-1000.0,6.3e-05,2]
[344418094,1733436632218,-1300.0,6.4e-05,2]
[344418095,1733436632227,-1784.88,6.486e-05,2]
[344418096,1733436632237,-200.0,6.5e-05,2]
[344418098,1733436632246,-200.0,6.6e-05,2]
[344418100,1733436632255,-200.0,6.7e-05,2]
[344418102,1733436632264,-611.38,6.775e-05,2]
[344418104,1733436632274,-200.0,6.8e-05,2]
[344418106,1733436632283,-5664.64019844,6.9e-05,2]
[344418109,1733436632295,-1293.80192846,6.9e-05,2]
[344418111,1733436632304,-757.0,6.9e-05,2]
[344418112,1733436632313,-150.0,6.929e-05,2]
[344418114,1733436632322,-13884.19807154,6.93e-05,2]
[344418117,1733436632333,-700.0,6.93e-05,2]
[344418119,1733436632345,-5880.0,6.93e-05,2]
[344418121,1733436632356,-1360.0,6.93e-05,2]
[344418128,1733436637824,-477.8961092,6.93e-05,2]
[344418129,1733436637858,-2216.80811482,6.93e-05,2]
[344418130,1733436637869,-500.0,6.973e-05,2]
[344418131,1733436637879,-150.0,6.997e-05,2]
[344418132,1733436637889,-150.0,6.997e-05,3]
[344418133,1733436637898,-150.0,6.997e-05,2]
[344418134,1733436637908,-150.0,6.997e-05,3]
[344418135,1733436637920,-150.0,6.997e-05,2]
[344418136,1733436637930,-150.0,6.997e-05,3]
[344418137,1733436637940,-150.0,6.997e-05,2]
[344418138,1733436637950,-150.0,6.997e-05,3]
[344418139,1733436637959,-127.30229545,6.997e-05,3]
[344418140,1733436637971,-22.69770455,6.997e-05,3]
[344418141,1733436637981,-150.0,6.997e-05,2]
[344418142,1733436637994,-3028.00090129,6.997e-05,2]
[344418143,1733436638004,-12383.55623316,6.998e-05,2]
[344418144,1733436638016,-148633.50000001,6.998e-05,2]
[344418145,1733436638034,-265.04,6.998e-05,2]
[344418150,1733436638232,-2466.32663407,6.998e-05,2]
[344418151,1733436639902,-772.55889205,6.998e-05,2]
[344418152,1733436639915,-531451.605986,6.998e-05,2]
[344418153,1733436640070,-680.34315717,6.998e-05,2]
[344418160,1733436643049,-266.100001,6.998e-05,2]
[344418161,1733436643537,-23.08807864,6.998e-05,2]
[344418162,1733436643548,-740.36,6.998e-05,2]
[344418163,1733436643559,-570.916685,6.998e-05,2]
[344418164,1733436643571,-657.41777,6.998e-05,2]
[344418165,1733436643610,-360.26241,6.998e-05,2]
[344418169,1733436645861,-468.35,6.998e-05,2]
[344418170,1733436645884,-9539.10708192,6.998e-05,2]
[344418171,1733436645898,-973.00574999,6.998e-05,2]
[344418172,1733436645995,-59683.38149,6.998e-05,2]
[344418173,1733436646009,-19850.6721,6.998e-05,2]
[344418174,1733436646021,-402.52309571,6.998e-05,2]
[344418178,1733437152031,214.42,4.589e-05,2]
[344418185,1733437750905,151.31,4.213e-05,2]
[344418212,1733437832102,-730.0,5.187e-05,2]
[344418216,1733437832119,-291.29330835,5.187e-05,2]
[344418219,1733437832137,-734.51669165,5.187e-05,2]
[344418222,1733437832153,-429.31,5.211e-05,2]
[344418224,1733437832166,-1404.77,5.219e-05,2]
[344418226,1733437832181,-1933.65015191,5.219e-05,2]
[344418228,1733437832194,-1457.42,5.224e-05,2]
[344418231,1733437832206,-3231.91555644,5.226e-05,2]
[344418242,1733437832288,-463.15444356,5.226e-05,2]
[344418245,1733437832301,-250.0,5.229e-05,2]
[344418249,1733437832314,-375.00106582,5.273e-05,2]
[344418253,1733437832331,-1624.99893418,5.273e-05,2]
[344418256,1733437832345,-14204.31,5.315e-05,2]
[344418260,1733437832364,-195.87,5.382e-05,2]
[344418263,1733437832379,-192.3,5.459e-05,2]
[344418266,1733437832391,-922.08,5.462e-05,2]
[344418269,1733437832407,-200.0,5.479e-05,2]
[344418272,1733437832420,-2541.08,5.481e-05,2]
[344418275,1733437832432,-708.21,5.481e-05,2]
[344418278,1733437832445,-935.13,5.484e-05,2]
[344418280,1733437832458,-4744.77,5.51e-05,2]
[344418281,1733437832475,-150.0,5.637e-05,2]
[344418282,1733437832489,-17125.73581165,5.638e-05,2]
[344418283,1733437832566,-6774.26418835,5.638e-05,2]
[344418284,1733437832579,-500.0,5.638e-05,2]
[344418285,1733437832593,-250.0,5.678e-05,2]
[344418286,1733437832607,-1500.0,5.678e-05,2]
[344418287,1733437832622,-2200.0,6e-05,2]
[344418288,1733437832636,-500.0,6e-05,2]
[344418289,1733437832650,-400.0,6e-05,2]
[344418290,1733437832663,-4500.0,6.1e-05,2]
[344418291,1733437832680,-1100.0,6.1e-05,2]
[344418292,1733437832692,-800.0,6.1e-05,2]
[344418293,1733437832705,-708.21,6.166e-05,2]
[344418294,1733437832719,-5175.8615886,6.2e-05,2]
[344418295,1733437832736,-1524.1384114,6.2e-05,2]
[344418296,1733437832754,-1600.0,6.2e-05,2]
[344418297,1733437832769,-1200.0,6.2e-05,2]
[344418298,1733437832782,-255.0,6.2e-05,2]
[344418299,1733437832796,-9000.0,6.3e-05,2]
[344418300,1733437832811,-2200.0,6.3e-05,2]
[344418301,1733437832824,-1600.0,6.3e-05,2]
[344418302,1733437832838,-151.31,6.32e-05,2]
[344418303,1733437832852,-11300.0,6.4e-05,2]
[344418304,1733437832865,-2800.0,6.4e-05,2]
[344418305,1733437832881,-2000.0,6.4e-05,2]
[344418306,1733437832895,-2200.0,6.5e-05,2]
[344418307,1733437832908,-500.0,6.5e-05,2]
[344418308,1733437832919,-400.0,6.5e-05,2]
[344418309,1733437832931,-2200.0,6.6e-05,2]
[344418310,1733437832943,-500.0,6.6e-05,2]
[344418311,1733437832956,-400.0,6.6e-05,2]
[344418312,1733437832971,-500.0,6.603e-05,2]
[344418313,1733437832987,-501.0,6.603e-05,2]
[344418314,1733437833004,-2479.518,6.7e-05,2]
[344418315,1733437833016,-2200.0,6.7e-05,2]
[344418316,1733437833028,-500.0,6.7e-05,2]
[344418317,1733437833040,-400.0,6.7e-05,2]
[344418318,1733437833052,-2200.0,6.8e-05,2]
[344418319,1733437833065,-500.0,6.8e-05,2]
[344418320,1733437833080,-400.0,6.8e-05,2]
[344418321,1733437833094,-433.0,6.82e-05,2]
[344418322,1733437833109,-708.21,6.851e-05,2]
[344418323,1733437833121,-885.9548479,6.86e-05,2]
[344418324,1733437833134,-622.2949,6.898e-05,2]
[344418325,1733437833147,-230.8821,6.898e-05,2]
[344418326,1733437833158,-11235.67358447,6.898e-05,2]
[344418327,1733437833171,-2809.0,6.9e-05,2]
[344418328,1733437833186,-1000.0,6.9e-05,2]
[344418329,1733437833201,-621.0,6.9e-05,2]
[344418330,1733437833214,-81932.16483591,6.93e-05,2]
[344418331,1733437833242,-10151.43417649,6.93e-05,2]
[344418332,1733437833265,-26921.86638044,6.93e-05,2]
[344418333,1733437833279,-5307.63408097,6.94e-05,2]
[344418334,1733437833292,-462.0,6.959e-05,2]
[344418335,1733437833306,-4383.0,6.959e-05,2]
[344418336,1733437833321,-62314.0,6.959e-05,2]
[344418337,1733437833333,-284.2340686,6.963e-05,2]
[344418338,1733437833348,-200.0,6.963e-05,2]
[344418339,1733437833370,-200.0,6.963e-05,2]
[344418340,1733437833384,-4694.17629102,6.99e-05,2]
[344418341,1733437833403,-1272.75498233,6.99e-05,2]
[344418342,1733437833420,-15609.01905825,6.99e-05,2]
[344418343,1733437833435,-150.0,6.997e-05,3]
[344418345,1733437833448,-150.0,6.997e-05,3]
[344418347,1733437833462,-150.0,6.997e-05,3]
[344418349,1733437833475,-150.0,6.997e-05,3]
[344418351,1733437833490,-150.0,6.997e-05,3]
[344418353,1733437833506,-150.0,6.997e-05,2]
[344418355,1733437833520,-150.0,6.997e-05,2]
[344418357,1733437833532,-150.0,6.997e-05,2]
[344418359,1733437833546,-150.0,6.997e-05,2]
[344418361,1733437833560,-150.0,6.997e-05,2]
[344418363,1733437833573,-5918.44976865,6.997e-05,2]
[344418366,1733437833589,-4081.55023135,6.997e-05,2]
[344418368,1733437833603,-151.47116866,6.997e-05,2]
[344418369,1733437833616,-5547.97859999,6.998e-05,2]
[344418374,1733437833663,-254.54332619,6.998e-05,2]
[344418376,1733437833679,-4685.4,6.998e-05,2]
[344418379,1733437833695,-1850.0,6.998e-05,2]
[344418383,1733437833734,-18800.7264,6.998e-05,2]
[344418385,1733437833753,-275.77680484,6.998e-05,2]
[344418391,1733437833784,-7387.3236958,6.998e-05,2]
[344418394,1733437833801,-134322.02973097,6.998e-05,2]
[344418398,1733437833818,-9013.00403678,6.998e-05,2]
[344418401,1733437833833,-989.99202783,6.998e-05,2]
[344418404,1733437833849,-2476.78887727,6.998e-05,2]
[344418408,1733437833865,-3303.499695,6.998e-05,2]
[344418420,1733437833979,-8960.0,6.998e-05,2]
[344418423,1733437833994,-1793.82,6.998e-05,2]
[344418425,1733437834014,-38408.32332981,6.998e-05,2]
[344418428,1733437834030,-50733.02902113,6.998e-05,2]
[344418430,1733437834044,-1607131.79999913,6.998e-05,2]
[344418432,1733437834060,-3646.90435248,6.998e-05,2]
[344418435,1733437834077,-48038.4,6.998e-05,2]
[344418437,1733437834092,-11705.7166311,6.998e-05,2]
[344418439,1733437834108,-14396.508,6.998e-05,2]
[344418443,1733437834134,-1930.33,6.998e-05,2]
[344418445,1733437834148,-1758.95526676,6.998e-05,2]
[344418448,1733437834164,-12820.53204297,6.998e-05,2]
[344418450,1733437834180,-82903.84996476,6.998e-05,2]
[344418452,1733437834196,-295.8946922,6.998e-05,2]
[344418455,1733437834211,-4895.8742383,6.998e-05,2]
[344418457,1733437834225,-940.61,6.998e-05,2]
[344418460,1733437834258,-89127.8998312,6.998e-05,2]
[344418464,1733437834289,-322.6641,6.998e-05,2]
[344418466,1733437834306,-3638.95728875,6.998e-05,2]
[344418486,1733437838664,-126967.50625618,6.998e-05,2]
[344418487,1733437838677,-256.23749999,6.998e-05,2]
[344418488,1733437838689,-2174382.10289586,6.998e-05,2]
[344418489,1733437838750,-1275.63470079,6.998e-05,2]
[344418490,1733437838766,-74064.0,6.998e-05,2]
[344418491,1733437838778,-301075.47630551,6.998e-05,2]
[344418492,1733437838790,-3734.00000001,6.998e-05,2]
[344418493,1733437838801,-3178.62061939,6.998e-05,2]
[344418494,1733437838813,-1319.73087188,6.998e-05,2]
[344418495,1733437838825,-912.35048,6.998e-05,2]
[344418496,1733437838837,-1985.284406,6.998e-05,2]
[344418497,1733437838848,-6926.675,6.998e-05,2]
[344418498,1733437838859,-18241.43424864,6.998e-05,2]
[344418499,1733437838870,-542.94648915,6.998e-05,2]
[344418500,1733437838882,-2727.52,6.998e-05,2]
[344418501,1733437838894,-243925.0,6.998e-05,2]
[344418502,1733437838906,-21530648.6766748,6.998e-05,2]
[344418503,1733437838917,-8401.94143954,6.998e-05,2]
[344418504,1733437838929,-5906.72937929,6.998e-05,2]
[344418505,1733437838941,-2975.11897851,6.998e-05,2]
[344418506,1733437838952,-3508.63906781,6.998e-05,2]
[344418507,1733437838969,-6309.31408178,6.998e-05,2]
[344418508,1733437838981,-8245.49011561,6.998e-05,2]
[344418509,1733437838993,-1446.14367545,6.998e-05,2]
[344418510,1733437839006,-27752.184,6.998e-05,2]
[344418511,1733437839018,-855.3418786,6.998e-05,2]
[344418512,1733437839030,-3993.46002773,6.998e-05,2]
[344418513,1733437839050,-8956.1,6.998e-05,2]
[344418514,1733437839061,-820.000011,6.998e-05,2]
[344418515,1733437839074,-594.99998642,6.998e-05,2]
[344418516,1733437839086,-19403.8,6.998e-05,2]
[344418517,1733437839108,-3866.2734711,6.998e-05,2]
[344418518,1733437839119,-1234.8225289,6.998e-05,2]
[344418519,1733437839131,-12325.9004,6.998e-05,2]